bitfinex-derivatives/quotes_BTCF0:USTF0_20240815
["timestamp","ask_amount","ask_price","bid_price","bid_amount"]
[1723690145192,0.56067878,58485.0,58484.0,0.3481]
[1723690146193,0.61181353,58485.0,58484.0,0.3481]
[1723690148294,0.56067878,58485.0,58484.0,0.3481]
[1723690148889,0.57615149,58485.0,58484.0,0.3481]
[1723690151489,0.51631749,58485.0,58484.0,0.3481]
[1723690151794,0.50084478,58485.0,58484.0,0.3481]
[1723690152093,0.56067878,58485.0,58484.0,0.3481]
[1723690152291,0.56067878,58485.0,58484.0,0.178]
[1723690153784,1.19330678,58485.0,58484.0,1e-06]
[1723690153994,0.68034678,58485.0,58484.0,1e-06]
[1723690156605,0.56067878,58485.0,58484.0,1e-06]
[1723690157502,0.62051278,58485.0,58484.0,1e-06]
[1723690157798,0.85701278,58485.0,58484.0,1e-06]
[1723690158198,1.36997278,58485.0,58484.0,1e-06]
[1723690158400,1.13347278,58485.0,58484.0,1e-06]
[1723690158704,0.56067878,58485.0,58484.0,1e-06]
[1723690158905,0.62051278,58485.0,58484.0,1e-06]
[1723690159403,1.76997278,58485.0,58484.0,1e-06]
[1723690161203,1.36997278,58485.0,58484.0,1e-06]
[1723690161410,0.85701278,58485.0,58484.0,1e-06]
[1723690161607,0.68858907,58485.0,58484.0,1e-06]
[1723690161804,0.62875507,58485.0,58484.0,1e-06]
[1723690162009,0.56067878,58485.0,58484.0,1e-06]
[1723690162210,0.50084478,58485.0,58484.0,0.140001]
[1723690163099,0.50084478,58485.0,58484.0,0.199836]
[1723690163506,0.50084478,58485.0,58484.0,1.112796]
[1723690164718,0.14004478,58485.0,58484.0,1.112796]
[1723690165810,0.14004478,58485.0,58484.0,1.473596]
[1723690166811,0.14004478,58485.0,58484.0,0.140001]
[1723690167414,0.19987878,58485.0,58484.0,0.140001]
[1723690167614,0.19987878,58485.0,58484.0,1e-06]
[1723690167806,1.09687278,58485.0,58484.0,1e-06]
[1723690168011,0.119672,58484.0,58483.0,0.00025637]
[1723690168317,1.19114787,58484.0,58483.0,0.00025637]
[1723690168516,0.51296,58483.0,58460.0,0.42804941]
[1723690168724,0.3608,58465.0,58460.0,0.5208]
[1723690168923,0.5008,58465.0,58460.0,0.5208]
[1723690169418,0.00017804,58464.0,58460.0,0.5208]
[1723690169715,0.16017804,58464.0,58460.0,0.5208]
[1723690169912,0.16017804,58464.0,58460.0,0.5348]
[1723690170113,0.16017804,58464.0,58460.0,1.04796]
[1723690170320,0.16017804,58464.0,58460.0,0.5348]
[1723690171112,0.16117804,58464.0,58460.0,0.5488]
[1723690171619,0.16117804,58464.0,58460.0,1.06196]
[1723690172221,0.16217804,58464.0,58460.0,1.06196]
[1723690172417,0.16217804,58464.0,58463.0,0.059857]
[1723690172721,0.16217804,58464.0,58463.0,0.219857]
[1723690172922,0.16217804,58464.0,58463.0,0.733017]
[1723690173218,0.16217804,58464.0,58463.0,0.219857]
[1723690174013,0.16117804,58464.0,58463.0,0.219857]
[1723690174214,0.16217804,58464.0,58463.0,0.233857]
[1723690174722,0.16217804,58464.0,58463.0,0.747017]
[1723690175107,0.16217804,58464.0,58463.0,0.233857]
[1723690175310,0.16117804,58464.0,58463.0,0.174]
[1723690175523,0.16117804,58464.0,58463.0,0.188]
[1723690175524,0.16217804,58464.0,58463.0,0.188]
[1723690184229,0.22203404,58464.0,58463.0,0.188]
[1723690185331,0.28189004,58464.0,58463.0,0.028]
[1723690185517,0.059862,58458.0,58457.0,0.00025637]
[1723690185722,0.797162,58458.0,58457.0,0.00025637]
[1723690186230,0.560662,58458.0,58457.0,0.17025637]
[1723690187025,0.560662,58458.0,58457.0,0.17425637]
[1723690187425,0.560662,58458.0,58457.0,0.17825637]
[1723690187830,0.5008,58458.0,58457.0,0.17825637]
[1723690188332,0.560662,58458.0,58457.0,0.17825637]
[1723690188723,0.5752457,58458.0,58457.0,0.00825637]
[1723690188932,0.8117457,58458.0,58457.0,0.00825637]
[1723690189237,0.9746457,58458.0,58457.0,0.00825637]
[1723690191637,0.2365,58451.0,58443.0,0.26606543]
[1723690191830,0.3608,58444.0,58443.0,0.14]
[1723690192029,0.56081245,58444.0,58443.0,0.14]
[1723690192232,0.50093645,58444.0,58441.0,0.00014398]
[1723690192828,0.50093645,58444.0,58443.0,0.005]
[1723690193538,0.50193645,58444.0,58443.0,0.005]
[1723690193733,0.56181245,58444.0,58443.0,0.005]
[1723690194539,1.47513245,58444.0,58437.0,0.0002566]
[1723690194738,0.11981,58416.0,58404.0,0.13760086]
[1723690195037,0.3608,58406.0,58404.0,0.16]
[1723690195339,0.05105471,58424.0,58421.0,0.0599]
[1723690195642,0.00018072,58423.0,58422.0,0.66922]
[1723690195841,0.00018072,58423.0,58422.0,1.443419]
[1723690196036,0.09018072,58423.0,58422.0,0.529899]
[1723690196231,0.09018072,58423.0,58422.0,0.47]
[1723690196440,0.09018072,58423.0,58422.0,0.1557]
[1723690196850,0.09018072,58423.0,58422.0,0.3257]
[1723690197147,0.10018072,58423.0,58422.0,0.1557]
[1723690197333,0.10318072,58423.0,58422.0,0.1557]
[1723690197744,0.16307872,58423.0,58422.0,0.1557]
[1723690198041,0.10118072,58423.0,58422.0,1.06922]
[1723690198237,0.00118072,58423.0,58422.0,1.299119]
[1723690198946,0.00018072,58423.0,58422.0,0.3257]
[1723690200937,0.00018072,58423.0,58417.0,0.00017221]
[1723690200938,0.119806,58418.0,58417.0,0.00017221]
[1723690201135,0.119806,58418.0,58397.0,0.1593]
[1723690201136,0.059915,58406.0,58397.0,0.1593]
[1723690201436,1.12827558,58406.0,58397.0,0.1593]
[1723690201641,0.3608,58398.0,58397.0,0.3193]
[1723690201842,0.4708,58398.0,58397.0,0.1593]
[1723690202145,0.36097558,58406.0,58397.0,1.21302]
[1723690202443,0.48097558,58406.0,58397.0,0.2993]
[1723690202632,0.48097558,58406.0,58398.0,0.51368]
[1723690202833,0.00025683,58403.0,58402.0,0.059919]
[1723690203041,0.00025683,58403.0,58402.0,0.219919]
[1723690203245,0.00025683,58403.0,58402.0,0.733599]
[1723690203946,0.00025683,58403.0,58402.0,0.734599]
[1723690204141,0.3608,58412.0,58402.0,1.1583]
[1723690204448,0.5308,58412.0,58407.0,0.059914]
[1723690204742,0.5308,58412.0,58408.0,0.1534]
[1723690204949,0.059915,58407.0,58397.0,0.1593]
[1723690205148,0.059915,58407.0,58400.0,0.059921]
[1723690205149,0.3608,58405.0,58400.0,0.059921]
[1723690205348,0.15,58405.0,58402.0,0.3608]
[1723690205647,0.15,58405.0,58404.0,0.059917]
[1723690205845,0.15,58405.0,58404.0,0.209917]
[1723690206149,0.00025683,58408.0,58407.0,0.059914]
[1723690206342,0.00025683,58408.0,58407.0,0.629914]
[1723690206544,0.00025683,58408.0,58407.0,1.143554]
[1723690206948,0.00043146,58408.0,58407.0,1.504354]
[1723690207142,0.059904,58417.0,58411.0,0.05991]
[1723690207339,0.199904,58417.0,58412.0,0.3107]
[1723690207541,0.199904,58417.0,58412.0,0.4607]
[1723690207741,0.14,58417.0,58412.0,0.4607]
[1723690208350,0.14,58417.0,58415.0,0.059906]
[1723690208646,0.14,58417.0,58415.0,0.209906]
[1723690208845,0.14,58417.0,58416.0,0.059905]
[1723690209044,0.14,58417.0,58416.0,0.229905]
[1723690209234,0.14,58417.0,58416.0,0.743465]
[1723690209635,0.14,58417.0,58416.0,0.229905]
[1723690209839,0.143,58417.0,58416.0,0.743465]
[1723690210146,0.143,58417.0,58416.0,0.229905]
[1723690210448,0.143,58417.0,58416.0,0.743465]
[1723690210747,0.143,58417.0,58416.0,0.231905]
[1723690211544,0.143,58417.0,58416.0,0.172]
[1723690211744,0.199904,58417.0,58416.0,0.172]
[1723690212647,0.14,58417.0,58416.0,0.172]
[1723690212846,0.14,58417.0,58416.0,0.231905]
[1723690213145,0.0130857,58417.0,58416.0,1.145465]
[1723690213345,0.00025683,58420.0,58419.0,0.059902]
[1723690213555,0.00025683,58420.0,58419.0,0.436402]
[1723690213751,0.3608,58431.0,58430.0,0.059891]
[1723690214054,0.3608,58431.0,58430.0,0.560691]
[1723690214055,0.01,58431.0,58430.0,0.560691]
[1723690214638,0.059867,58454.0,58448.0,0.059872]
[1723690214834,0.15,58454.0,58448.0,0.17]
[1723690215039,0.15,58454.0,58449.0,0.1537]
[1723690215244,0.05987,58450.0,58449.0,0.14]
[1723690215448,0.16987,58450.0,58449.0,0.14]
[1723690216245,0.16987,58450.0,58446.0,0.3618]
[1723690216447,0.16987,58450.0,58446.0,0.5308]
[1723690216642,0.11,58450.0,58446.0,0.5308]
[1723690216851,0.11,58450.0,58446.0,0.17]
[1723690217045,0.112,58450.0,58446.0,0.17]
[1723690217241,0.115,58450.0,58446.0,0.17]
[1723690217443,0.115,58450.0,58449.0,0.059871]
[1723690217641,0.112,58450.0,58449.0,0.229871]
[1723690217846,0.112,58450.0,58449.0,0.743151]
[1723690218546,0.11,58450.0,58449.0,0.743151]
[1723690219448,0.113,58450.0,58449.0,0.743151]
[1723690219646,0.116,58450.0,58449.0,0.743151]
[1723690220049,0.116,58450.0,58449.0,0.229871]
[1723690220445,0.116,58450.0,58449.0,0.743151]
[1723690220645,0.116,58450.0,58449.0,0.229871]
[1723690225255,0.4768,58450.0,58449.0,0.17]
[1723690225447,0.53467,58450.0,58449.0,0.17]
[1723690226265,0.059874,58446.0,58445.0,0.00025683]
[1723690226452,0.570674,58446.0,58445.0,0.00025683]
[1723690226764,0.059883,58438.0,58430.0,0.059891]
[1723690226954,0.059885,58436.0,58433.0,0.16]
[1723690227165,0.059885,58436.0,58424.0,0.1546]
[1723690227166,0.059892,58429.0,58421.0,0.0599]
[1723690227453,0.590692,58429.0,58428.0,0.1701984]
[1723690228361,0.591692,58429.0,58428.0,0.1751984]
[1723690228853,0.600692,58429.0,58428.0,0.1701984]
[1723690229059,0.611692,58429.0,58428.0,0.1701984]
[1723690229664,0.5518,58429.0,58428.0,0.1701984]
[1723690229958,0.191,58429.0,58428.0,1.1435314]
[1723690230760,0.021,58429.0,58428.0,1.5043314]
[1723690230946,0.021,58429.0,58428.0,1.6605314]
[1723690231550,0.021,58429.0,58428.0,2.27680332]
[1723690232066,0.00025683,58434.0,58433.0,0.059888]
[1723690232356,0.00025683,58434.0,58433.0,0.199888]
[1723690232660,0.00025683,58434.0,58433.0,1.113288]
[1723690233762,0.00025683,58434.0,58433.0,1.474088]
[1723690234263,0.00025683,58434.0,58433.0,1.477088]
[1723690234655,0.00025683,58434.0,58433.0,1.480088]
[1723690235361,0.00025683,58434.0,58433.0,1.477088]
[1723690235551,0.00125683,58434.0,58433.0,1.483088]
[1723690236255,0.00025683,58434.0,58433.0,1.477088]
[1723690236470,0.00225683,58434.0,58433.0,1.486088]
[1723690237063,0.00125683,58434.0,58433.0,1.480088]
[1723690237261,0.00225683,58434.0,58433.0,1.486088]
[1723690238367,0.00225683,58434.0,58433.0,1.80100816]
[1723690238368,8.3e-07,58434.0,58433.0,1.80100816]
[1723690238567,0.3608,58445.0,58444.0,0.059876]
[1723690238769,0.3808,58445.0,58444.0,0.219876]
[1723690238960,0.02,58445.0,58444.0,0.580676]
[1723690239875,0.025,58445.0,58444.0,0.580676]
[1723690240470,0.031,58445.0,58444.0,0.581676]
[1723690240969,0.025,58445.0,58444.0,0.583676]
[1723690241268,0.025,58445.0,58444.0,1.496996]
[1723690241475,0.00025683,58450.0,58449.0,0.059871]
[1723690241767,0.12025683,58450.0,58449.0,0.48526688]
[1723690242071,0.12025683,58450.0,58449.0,0.22853262]
[1723690242759,0.12325683,58450.0,58449.0,0.219871]
[1723690242965,0.12625683,58450.0,58449.0,0.219871]
[1723690244563,0.12525683,58450.0,58449.0,0.219871]
[1723690244974,0.18312683,58450.0,58449.0,0.16]
[1723690245274,0.05988,58440.0,58437.0,0.3608]
[1723690245466,0.19988,58440.0,58439.0,0.16025683]
[1723690246976,0.141,58440.0,58439.0,0.16925683]
[1723690247477,0.144,58440.0,58439.0,0.16025683]
[1723690247672,0.15573813,58440.0,58439.0,0.16025683]
[1723690248977,0.145,58440.0,58439.0,0.22913783]
[1723690249574,0.147,58440.0,58439.0,0.22013783]
[1723690250492,0.14,58440.0,58439.0,0.22113783]
[1723690250790,0.14,58440.0,58439.0,0.22313783]
[1723690252388,0.14,58440.0,58439.0,1.13649783]
[1723690252587,0.164,58452.0,58449.0,0.059871]
[1723690252784,0.14025683,58450.0,58449.0,0.229871]
[1723690253988,0.14325683,58450.0,58449.0,0.229871]
[1723690254393,0.14025683,58450.0,58449.0,0.229871]
[1723690254585,0.14425683,58450.0,58449.0,0.229871]
[1723690256093,0.14725683,58450.0,58449.0,0.229871]
[1723690256994,0.14425683,58450.0,58449.0,0.229871]
[1723690257294,0.14325683,58450.0,58449.0,0.229871]
[1723690257895,0.14525683,58450.0,58449.0,0.229871]
[1723690258599,0.14425683,58450.0,58449.0,0.229871]
[1723690259589,0.14325683,58450.0,58449.0,0.229871]
[1723690259984,0.14125683,58450.0,58449.0,0.229871]
[1723690260189,0.14325683,58450.0,58449.0,0.229871]
[1723690260391,0.14225683,58450.0,58449.0,0.229871]
[1723690260591,0.14325683,58450.0,58449.0,0.229871]
[1723690260801,0.14325683,58450.0,58449.0,0.526242]
[1723690261092,0.05118903,58461.0,58456.0,0.059864]
[1723690261290,0.05118903,58461.0,58456.0,0.743064]
[1723690261594,0.05118903,58461.0,58460.0,0.05986]
[1723690261799,0.07118903,58461.0,58460.0,0.20986]
[1723690262488,0.07118903,58461.0,58460.0,0.22174274]
[1723690263301,0.07118903,58461.0,58460.0,0.27245737]
[1723690263592,0.091859,58461.0,58460.0,0.151]
[1723690263799,0.100859,58461.0,58460.0,0.152]
[1723690264297,0.041,58461.0,58460.0,0.21186]
[1723690266496,0.041,58461.0,58460.0,1.23559463]
[1723690266688,0.021,58461.0,58460.0,1.54568]
[1723690267598,1e-06,58461.0,58460.0,1.86078267]
[1723690267797,3e-07,58466.0,58465.0,0.179565]
[1723690268012,0.08525173,58475.0,58465.0,0.179565]
[1723690268013,7.3e-07,58475.0,58474.0,0.119692]
[1723690268295,0.10232189,58480.0,58479.0,0.059841]
[1723690268501,0.10232189,58480.0,58479.0,0.650482]
[1723690268698,0.10232189,58480.0,58479.0,0.42792493]
[1723690268699,0.16216089,58480.0,58479.0,0.42792493]
[1723690268904,0.10232189,58480.0,58479.0,0.17]
[1723690269099,0.10232189,58480.0,58479.0,0.229841]
[1723690270308,0.10432189,58480.0,58479.0,0.466341]
[1723690270498,0.10432189,58480.0,58479.0,1.340141]
[1723690270803,0.10432189,58480.0,58479.0,1.740141]
[1723690271192,0.10432189,58480.0,58479.0,5.510141]
[1723690271400,0.10432189,58480.0,58479.0,0.827141]
[1723690272006,0.10432189,58480.0,58479.0,0.229841]
[1723690272309,0.059845,58475.0,58474.0,0.0002566]
[1723690272600,0.570645,58475.0,58474.0,0.0002566]
[1723690273308,0.059847,58473.0,58472.0,0.050488]
[1723690273602,0.17,58473.0,58472.0,0.190488]
[1723690275219,0.17,58473.0,58472.0,0.197488]
[1723690275711,0.17,58473.0,58472.0,0.198488]
[1723690276011,0.17,58473.0,58472.0,0.252336]
[1723690276400,0.17,58473.0,58472.0,0.251336]
[1723690276604,0.17,58473.0,58472.0,0.190488]
[1723690276904,1.142927,58473.0,58472.0,0.051488]
[1723690277105,0.059857,58463.0,58451.0,0.3608]
[1723690277299,0.059862,58458.0,58457.0,0.10143003]
[1723690277501,0.590662,58458.0,58457.0,0.10143003]
[1723690277708,0.5308,58458.0,58457.0,0.30129303]
[1723690277911,0.590662,58458.0,58457.0,0.24143003]
[1723690278204,0.590662,58458.0,58457.0,0.10143003]
[1723690279008,0.5308,58458.0,58457.0,0.10143003]
[1723690279203,0.590662,58458.0,58457.0,0.10143003]
[1723690279409,0.059867,58453.0,58452.0,0.0002566]
[1723690279612,0.570667,58453.0,58452.0,0.1502566]
[1723690280208,0.5108,58453.0,58452.0,0.1502566]
[1723690280407,0.5108,58453.0,58452.0,0.2101246]
[1723690280905,0.15,58453.0,58452.0,0.2101246]
[1723690281415,0.3608,58458.0,58457.0,0.059863]
[1723690281604,0.3608,58458.0,58457.0,0.209863]
[1723690282003,0.3628,58458.0,58457.0,0.210863]
[1723690282610,0.01,58458.0,58457.0,0.218863]
[1723690282812,0.01,58458.0,58457.0,0.219863]
[1723690283205,0.01,58458.0,58457.0,0.210863]
[1723690284398,0.01,58458.0,58457.0,0.212863]
[1723690285207,0.01,58458.0,58457.0,0.209863]
[1723690289314,1.343862,58458.0,58457.0,0.15]
[1723690289511,0.059872,58449.0,58443.0,0.3608]
[1723690289712,0.1619,58448.0,58443.0,0.5108]
[1723690290015,0.059877,58444.0,58443.0,0.5108]
[1723690290314,0.14,58444.0,58443.0,0.5108]
[1723690290503,0.14,58444.0,58443.0,0.570678]
[1723690290706,0.14,58444.0,58443.0,0.584678]
[1723690291412,0.14,58444.0,58443.0,0.570678]
[1723690291620,0.14,58444.0,58443.0,0.584678]
[1723690292204,0.199877,58444.0,58443.0,0.5388]
[1723690294513,0.199877,58444.0,58443.0,0.178]
[1723690295220,0.059882,58439.0,58438.0,0.0002566]
[1723690295519,0.580682,58439.0,58438.0,0.0002566]
[1723690295717,1.094042,58439.0,58438.0,0.0002566]
[1723690296420,1.094042,58439.0,58438.0,0.0012566]
[1723690296823,1.094042,58439.0,58438.0,0.0022566]
[1723690297219,0.580682,58439.0,58438.0,0.1422566]
[1723690297517,0.588682,58439.0,58438.0,0.1422566]
[1723690297912,0.5288,58439.0,58438.0,0.1422566]
[1723690298618,0.5378,58439.0,58438.0,0.1422566]
[1723690301220,0.5498059,58439.0,58438.0,0.1422566]
[1723690301827,0.5378,58439.0,58438.0,0.1422566]
[1723690305815,0.177,58439.0,58438.0,0.2021396]
[1723690306221,0.177,58439.0,58438.0,0.1422566]
[1723690306421,0.5378,58439.0,58438.0,0.1422566]
[1723690306823,0.597682,58439.0,58438.0,0.1422566]
[1723690307920,0.5378,58439.0,58438.0,0.1422566]
[1723690308121,0.177,58439.0,58438.0,0.1422566]
[1723690308622,0.177,58439.0,58438.0,0.2021396]
[1723690311423,0.3808,58445.0,58444.0,0.059877]
[1723690311623,0.0002566,58449.0,58448.0,0.059872]
[1723690311832,0.16191724,58462.0,58452.0,0.059868]
[1723690312035,0.01194438,58461.0,58452.0,0.219868]
[1723690312331,0.3608,58455.0,58452.0,0.219868]
[1723690312526,0.5208,58455.0,58453.0,0.059867]
[1723690312731,0.5208,58455.0,58453.0,0.199867]
[1723690312931,0.5208,58455.0,58454.0,0.059866]
[1723690313132,0.5208,58455.0,58454.0,0.229866]
[1723690314233,0.5218,58455.0,58454.0,0.229866]
[1723690315329,0.3618,58455.0,58454.0,0.743066]
[1723690315730,0.3628,58455.0,58454.0,0.743066]
[1723690315932,0.4728,58455.0,58454.0,0.229866]
[1723690316934,0.3628,58455.0,58454.0,0.229866]
[1723690318242,0.002,58455.0,58454.0,0.229866]
[1723690318552,0.002,58455.0,58454.0,0.590666]
[1723690319540,0.112,58455.0,58454.0,0.590666]
[1723690320240,0.112,58455.0,58454.0,0.229866]
[1723690324256,0.0002566,58460.0,58454.0,1.33845564]
[1723690324548,0.27463671,58474.0,58465.0,0.059855]
[1723690324755,0.420643,58477.0,58475.0,0.059845]
[1723690325054,0.22517178,58476.0,58475.0,0.199845]
[1723690326454,0.23317178,58476.0,58475.0,0.201845]
[1723690326652,0.29301578,58476.0,58475.0,0.142]
[1723690326852,0.80605578,58476.0,58475.0,0.142]
[1723690327155,0.29301578,58476.0,58475.0,0.142]
[1723690328647,0.29301578,58476.0,58470.0,0.0002566]
[1723690328648,0.059846,58474.0,58470.0,0.0002566]
[1723690328944,0.420649,58471.0,58470.0,0.0202566]
[1723690329148,0.570649,58471.0,58470.0,0.0202566]
[1723690329754,0.570649,58471.0,58470.0,0.0212566]
[1723690330054,0.570649,58471.0,58470.0,0.0222566]
[1723690331159,0.5108,58471.0,58470.0,0.0222566]
[1723690331547,0.5108,58471.0,58470.0,0.0821066]
[1723690331853,0.156,58471.0,58470.0,0.3186066]
[1723690332055,0.08517178,58476.0,58475.0,0.059845]
[1723690332246,0.08517178,58476.0,58475.0,0.51619]
[1723690332451,0.08517178,58476.0,58475.0,1.68474464]
[1723690333256,0.09217178,58476.0,58475.0,2.04654464]
[1723690333453,0.01,58476.0,58475.0,2.04754464]
[1723690333954,0.63543671,58486.0,58477.0,0.059843]
[1723690334161,0.3608,58486.0,58477.0,0.219843]
[1723690334360,0.3608,58486.0,58477.0,1.132843]
[1723690334966,0.3608,58486.0,58477.0,0.732843]
[1723690335155,0.3608,58486.0,58480.0,0.05984]
[1723690335462,0.0402566,58481.0,58480.0,0.21984]
[1723690336563,0.0422566,58481.0,58480.0,0.22184]
[1723690337156,0.0422566,58481.0,58480.0,0.59127571]
[1723690337356,0.0022566,58481.0,58480.0,0.59127571]
[1723690337556,0.3608,58486.0,58485.0,0.059835]
[1723690337758,0.3808,58486.0,58485.0,0.219835]
[1723690338762,0.3808,58486.0,58485.0,0.220835]
[1723690338963,0.3808,58486.0,58485.0,0.221835]
[1723690342463,0.02,58486.0,58485.0,0.734795]
[1723690342659,0.0002566,58491.0,58490.0,0.059829]
[1723690342965,0.0502566,58491.0,58490.0,0.199829]
[1723690344354,0.0502566,58491.0,58490.0,0.200829]
[1723690344555,0.0502566,58491.0,58490.0,0.21250001]
[1723690344759,0.0502566,58491.0,58490.0,0.21350001]
[1723690345864,0.4708846,58491.0,58490.0,0.142]
[1723690346068,0.48230451,58491.0,58490.0,0.142]
[1723690346461,0.62740451,58491.0,58490.0,0.142]
[1723690355769,0.059834,58486.0,58485.0,0.0002566]
[1723690355975,0.5108,58486.0,58472.0,0.06763404]
[1723690356179,0.420647,58473.0,58472.0,0.20763404]
[1723690356377,0.570647,58473.0,58472.0,0.20763404]
[1723690356568,0.931447,58473.0,58472.0,0.20763404]
[1723690356768,0.991294,58473.0,58472.0,0.20763404]
[1723690356968,1.904374,58473.0,58472.0,0.06082257]
[1723690357376,1.844527,58473.0,58472.0,0.06082257]
[1723690357575,0.931447,58473.0,58472.0,0.14]
[1723690357772,0.931447,58473.0,58472.0,0.147]
[1723690358773,0.931447,58473.0,58472.0,0.153]
[1723690359586,0.1197,58470.0,58467.0,0.0002566]
[1723690359787,0.059858,58462.0,58461.0,0.10123909]
[1723690359976,1.157858,58462.0,58461.0,0.00752878]
[1723690360176,2.071018,58462.0,58461.0,0.00752878]
[1723690360673,0.00016754,58461.0,58447.0,0.10152829]
[1723690360875,0.3608,58450.0,58447.0,0.10152829]
[1723690361085,0.59067,58450.0,58449.0,0.08487137]
[1723690361383,0.59067,58450.0,58449.0,0.0002566]
[1723690362387,0.59167,58450.0,58449.0,0.0002566]
[1723690363789,0.59167,58450.0,58449.0,0.0062566]
[1723690365686,0.60351235,58450.0,58449.0,0.0062566]
[1723690367090,0.54364235,58450.0,58449.0,0.0062566]
[1723690368184,0.54364235,58450.0,58449.0,0.0661276]
[1723690368785,0.5318,58450.0,58449.0,0.0661276]
[1723690371689,0.171,58450.0,58449.0,0.0661276]
[1723690372374,0.171,58450.0,58449.0,0.98800698]
[1723690372581,0.01,58456.0,58455.0,0.059865]
[1723690372881,0.01,58456.0,58449.0,0.1518566]
[1723690372882,0.02,58456.0,58449.0,0.1518566]
[1723690373586,0.02,58456.0,58453.0,0.059867]
[1723690374792,0.02,58456.0,58455.0,0.059865]
[1723690377090,0.02,58456.0,58455.0,0.07146587]
[1723690377789,0.00042414,58461.0,58455.0,1.04453087]
[1723690377985,0.01,58459.0,58458.0,0.059862]
[1723690378386,0.01,58459.0,58458.0,0.973062]
[1723690379189,0.011,58459.0,58458.0,0.584062]
[1723690379679,0.011,58459.0,58458.0,0.979062]
[1723690380494,0.011,58459.0,58458.0,0.006]
[1723690380678,0.070861,58459.0,58458.0,0.006]
[1723690380884,0.070861,58459.0,58458.0,0.011]
[1723690381488,0.0823926,58459.0,58458.0,0.011]
[1723690382589,0.4431926,58459.0,58458.0,0.011]
[1723690383092,0.3833316,58459.0,58458.0,0.070862]
[1723690385488,0.3718,58459.0,58458.0,0.070862]
[1723690385889,0.3718,58459.0,58458.0,0.984062]
[1723690386497,0.3718,58459.0,58458.0,0.08227909]
[1723690386700,0.431661,58459.0,58458.0,0.011]
[1723690387789,0.44307228,58459.0,58458.0,0.011]
[1723690392909,0.511375,58459.0,58458.0,0.011]
[1723690393093,0.3718,58459.0,58458.0,0.070862]
[1723690393498,0.3718,58459.0,58458.0,0.011]
[1723690393896,0.44010272,58459.0,58458.0,0.011]
[1723690394296,0.3718,58459.0,58458.0,0.011]
[1723690395206,0.431661,58459.0,58458.0,0.011]
[1723690398809,0.070861,58459.0,58458.0,0.011]
[1723690399102,0.431661,58459.0,58458.0,0.011]
[1723690400909,0.3718,58459.0,58458.0,0.011]
[1723690401112,0.3718,58459.0,58458.0,0.070862]
[1723690406804,0.011,58459.0,58458.0,0.070862]
[1723690409814,0.3718,58459.0,58458.0,0.070862]
[1723690415522,0.3718,58459.0,58458.0,0.011]
[1723690415930,0.059872,58448.0,58447.0,0.08488653]
[1723690416134,0.059878,58443.0,58442.0,0.10186663]
[1723690416429,0.580678,58443.0,58442.0,0.10186663]
[1723690417425,0.581678,58443.0,58442.0,0.11286663]
[1723690419123,0.581678,58443.0,58442.0,0.12686663]
[1723690419327,0.583678,58443.0,58442.0,0.11586663]
[1723690419827,0.585678,58443.0,58442.0,0.10186663]
[1723690420828,0.58584554,58443.0,58442.0,0.10186663]
[1723690421024,0.59736234,58443.0,58442.0,0.10186663]
[1723690424934,0.52596754,58443.0,58442.0,0.16174563]
[1723690425329,0.52596754,58443.0,58442.0,0.973199]
[1723690425632,0.52596754,58443.0,58437.0,0.0601396]
[1723690425833,0.52596754,58443.0,58438.0,0.059883]
[1723690426137,0.52596754,58443.0,58437.0,0.0002566]
[1723690426530,0.0002566,58448.0,58447.0,0.059873]
[1723690426737,0.0002566,58448.0,58447.0,0.657273]
[1723690427332,0.0002566,58448.0,58447.0,0.296473]
[1723690427840,0.0022566,58448.0,58447.0,0.296473]
[1723690428339,0.0022566,58448.0,58447.0,0.657273]
[1723690429539,0.0002566,58448.0,58447.0,0.659273]
[1723690430040,0.05111762,58457.0,58447.0,1.18422744]
[1723690430239,0.05111762,58457.0,58456.0,0.059864]
[1723690430240,0.20111762,58457.0,58456.0,0.059864]
[1723690430736,0.15,58457.0,58456.0,0.059864]
[1723690432431,0.151,58457.0,58456.0,0.059864]
[1723690433045,0.15,58457.0,58456.0,0.059864]
[1723690433334,0.15,58457.0,58456.0,0.062864]
[1723690433735,0.15,58457.0,58456.0,0.065864]
[1723690434144,0.209863,58457.0,58456.0,0.006]
[1723690434344,0.15,58457.0,58456.0,0.006]
[1723690435138,0.209863,58457.0,58456.0,0.006]
[1723690436143,0.15,58457.0,58456.0,0.065864]
[1723690438845,0.15,58457.0,58456.0,0.006]
[1723690440441,0.15,58457.0,58456.0,0.065864]
[1723690454244,0.20110166,58457.0,58456.0,0.065864]
[1723690454447,0.15,58457.0,58456.0,0.426664]
[1723690454653,0.15,58457.0,58456.0,0.886528]
[1723690454856,0.05122015,58468.0,58462.0,0.059858]
[1723690455041,0.07,58465.0,58464.0,0.420656]
[1723690455358,0.05122015,58470.0,58469.0,0.059851]
[1723690455558,0.09122015,58470.0,58469.0,0.420651]
[1723690456448,0.09122015,58470.0,58469.0,0.059851]
[1723690456745,0.09122015,58470.0,58469.0,0.420651]
[1723690456946,0.09122015,58470.0,58469.0,0.062851]
[1723690458049,0.09122015,58470.0,58469.0,0.066851]
[1723690459149,0.04,58470.0,58469.0,0.066851]
[1723690461356,0.1021786,58473.0,58472.0,0.179544]
[1723690461557,0.0133637,58475.0,58474.0,0.119692]
[1723690461757,0.02093334,58477.0,58476.0,0.119688]
[1723690461963,0.10231158,58486.0,58482.0,0.059838]
[1723690462150,0.10231158,58486.0,58482.0,0.657238]
[1723690462859,0.10231158,58486.0,58482.0,1.570198]
[1723690463563,0.10231158,58486.0,58482.0,1.170198]
[1723690463765,0.09725965,58483.0,58482.0,0.658238]
[1723690464264,0.09825965,58483.0,58482.0,1.572198]
[1723690464763,0.09825965,58483.0,58482.0,0.67080108]